Cogmind - Beta 12 X1 @@@ ROGUE MODE // 2022.08.09 @ 21:12:54 Player: Momo Result: Core destroyed Performance ------------- Evolutions (7) 3500 Regions Visited (25) 5000 Robots Destroyed (269) 1345 Value Destroyed (19155) 19155 Prototype IDs (38) 760 Alien Tech Used (7) 1400 Bonus (16367) 16367 TOTAL SCORE: 47527 Bonus ------- High Alert Combat Kills 1289 Follower Combat Kills 6557 Entered Garrisons 1600 Used RIF Installer 4500 Built Enhanced Grunts 300 A7 Reached Mainframe 300 Met R17 at Cetus 500 Met R17 at Research 2000 Met Sigix 2000 Friendly Fire -2679 Cogmind --------- Core Integrity 0/1300 Matter 300/300 Energy 98/100 System Corruption 11% Temperature Cool (0) Movement Treading (152) Location -3/Garrison Parts ------- > --- POWER (1) -------- (None) > --- PROPULSION (2) --- Medium Treads Biometal Medium Treads > --- UTILITY (17) ----- Large Storage Unit Advanced Weight Redist. System Spectral Analyzer Advanced Launcher Guidance Computer Advanced Target Analyzer Experimental Core Analyzer Improved Armor Integrity Analyzer Improved Core Shielding Relay Coupler [NC] (40) Relay Coupler [Grunt] (2) Relay Coupler [Brawler] (44) Relay Coupler [Sentry] (31) Relay Coupler [Specialist] (5) Relay Coupler [Hunter] (7) Relay Coupler [Heavy] (19) Relay Coupler [Proto] (15) Spacefold Activator > --- WEAPON (2) ------- Coil Gun Advanced Remote Datajack > --- INVENTORY (17) --- Improved Antigrav System Advanced Energy Well (500) Experimental Energy Well (600) Improved Matter Compressor (141) Active Cooling Armor Phase Armor Experimental EM Disruption Field Phase Redirector Relay Coupler [NC] (39) Relay Coupler [Proto] (15) Integrity Redistributor Integrity Redistributor Core Reset Matrix Subatomic Replicator Peak State ------------ > --- POWER ------------ Micro Antimatter Reactor > --- PROPULSION ------- Advanced Heavy Treads > --- UTILITY ---------- Large Storage Unit Spectral Analyzer Advanced Launcher Guidance Computer Advanced Target Analyzer Advanced Target Analyzer Experimental Core Analyzer Improved Armor Integrity Analyzer Phase Armor Relay Coupler [NC] Relay Coupler [Grunt] Relay Coupler [Specialist] Relay Coupler [Hunter] Relay Coupler [Heavy] Relay Coupler [Proto] Relay Coupler [Proto] Spacefold Activator > --- WEAPON ----------- Compact Linear Accelerator Advanced Remote Datajack > --- INVENTORY -------- Advanced Energy Well Experimental Energy Well Improved Matter Compressor Centrium Medium Armor Plating Active Cooling Armor Experimental EM Disruption Field Phase Redirector Relay Coupler [Proto] Integrity Redistributor Integrity Redistributor Core Reset Matrix Subatomic Replicator Advanced Remote Datajack Advanced Remote Datajack [Rating: 187] Favorites ----------- Power Antimatter Reactor Engine Improved Deuterium Engine Power Core Light Nuclear Core Reactor Antimatter Reactor Propulsion Improved Heavy Treads Treads Improved Heavy Treads Wheel Armored Wheel Hover Unit Improved Antigrav System Utility Relay Coupler [Grunt] Device Experimental Force Field Storage High-capacity Storage Unit Processor Spectral Analyzer Hackware Relay Coupler [Grunt] Protection Centrium Medium Armor Plating Artifact Phase Armor Weapon Improved Remote Datajack Energy Gun Advanced Variable Charge Gun Energy Cannon Ion Burst Cannon Ballistic Gun Advanced KE Penetrator Ballistic Cannon Compact Linear Accelerator Launcher Heavy Rocket Launcher Special Weapon Improved Remote Datajack Impact Weapon Heavy Flail Slashing Weapon Katana Build | -11 -10 -10 -9 -9 -9 -8 -8 -7 -7 -6 -6 -6 -6 -6 -6 -5 -5 -5 -5 -4 -4 -3 -3 -3 -3 ------- Run | Scr Mat Min Mat Sto Gar Mat Gar Fac Gar Fac Ext Cet Arc Hub Gar Fac Gar Fac Gar Fac Gar Res Qua Sec Gar Slots Evolved 14 | . . . 2 . . 2 . 2 . 2 . . . . . 2 . . . 2 . 2 . . . Power . | . . . . . . . . . . . . . . . . . . . . . . . . . . Propulsion . | . . . . . . . . . . . . . . . . . . . . . . . . . . Utility 14 | . . . 2 . . 2 . 2 . 2 . . . . . 2 . . . 2 . 2 . . . Weapon . | . . . . . . . . . . . . . . . . . . . . . . . . . . Parts Attached 463 | 5 5 3 6 19 15 7 11 8 27 53 16 5 2 6 30 16 26 31 28 11 29 33 25 34 12 Power 29 | 1 . 1 2 4 1 . . . 2 4 1 1 1 . . 3 . 1 . 3 1 2 1 . . Engine 10 | 1 . 1 2 4 1 . . . . . . . . . . . . 1 . . . . . . . Core 4 | . . . . . . . . . . 1 . . . . . 1 . . . 2 . . . . . Reactor 15 | . . . . . . . . . 2 3 1 1 1 . . 2 . . . 1 1 2 1 . . Propulsion 39 | 2 2 . . 1 3 1 1 . 1 4 . . . . 2 . . 3 . . 1 2 1 12 3 Treads 29 | . . . . . 1 1 1 . 1 4 . . . . 2 . . 3 . . 1 2 1 9 3 Leg . | . . . . . . . . . . . . . . . . . . . . . . . . . . Wheel 7 | 2 2 . . 1 2 . . . . . . . . . . . . . . . . . . . . Hover 3 | . . . . . . . . . . . . . . . . . . . . . . . . 3 . Flight . | . . . . . . . . . . . . . . . . . . . . . . . . . . Utility 241 | 1 2 . 2 7 6 4 6 4 16 27 6 2 . 4 16 5 19 16 17 8 24 15 10 18 6 Device 65 | . . . 2 1 2 . 1 . 3 9 3 . . 2 4 2 4 6 3 3 5 6 4 3 2 Storage 13 | 1 1 . . . . . . . . . . 1 . . . . 1 1 . . 3 3 1 1 . Processor 26 | . 1 . . 2 1 . 1 . 1 2 2 . . 1 . . 1 5 1 1 1 4 1 1 . Hackware 98 | . . . . 1 . 4 4 3 11 10 1 . . 1 12 2 12 2 13 2 13 1 1 2 3 Protection 31 | . . . . 3 3 . . 1 1 6 . 1 . . . 1 1 2 . 2 2 1 2 4 1 Artifact 8 | . . . . . . . . . . . . . . . . . . . . . . . 1 7 . Weapon 154 | 1 1 2 2 7 5 2 4 4 8 18 9 2 1 2 12 8 7 11 11 . 3 14 13 4 3 Energy Gun 12 | . . . 2 2 . 1 . . . . . 1 . . 1 . 1 2 . . . 1 . . 1 Energy Cannon 16 | . . . . 2 2 . 1 . 2 4 . . . . . . . . . . . 2 3 . . Ballistic Gun 38 | 1 1 2 . 3 . 1 . 1 4 4 2 1 1 1 6 3 3 1 . . . 1 1 . 1 Ballistic Cannon 19 | . . . . . . . . . . . 1 . . . . . . 1 5 . 2 6 3 1 . Launcher 15 | . . . . . 2 . 1 . 1 4 2 . . 1 3 . 1 . . . . . . . . Special Weapon 46 | . . . . . 1 . 1 1 1 6 1 . . . 2 5 2 5 6 . 1 4 6 3 1 Impact Weapon 1 | . . . . . . . . . . . 1 . . . . . . . . . . . . . . Slashing Weapon 7 | . . . . . . . 1 2 . . 2 . . . . . . 2 . . . . . . . Piercing Weapon . | . . . . . . . . . . . . . . . . . . . . . . . . . . Special Melee Weapon . | . . . . . . . . . . . . . . . . . . . . . . . . . . Unidentified Prototypes 37 | . . . . 4 2 . . . 1 2 . 4 . . 1 . . 7 . 1 . 3 4 7 1 Corrupted Parts 1 | . . . . . . . . . . . . . . . 1 . . . . . . . . . . System Corruption 9 | . . . . . . . . . . . . . . . 9 . . . . . . . . . . Parts Lost 78 | . . 3 3 5 3 . 3 . 6 16 6 . . 1 . 3 5 2 . . 7 . 6 8 1 Power 9 | . . 1 1 1 . . . . 1 2 . . . . . 1 . . . . . . 1 1 . Propulsion 7 | . . . . 1 2 . . . . 1 . . . . . . . . . . . . . 2 1 Utility 43 | . . . 1 1 1 . 3 . 4 9 5 . . 1 . . 5 1 . . 6 . 4 2 . Weapon 19 | . . 2 1 2 . . . . 1 4 1 . . . . 2 . 1 . . 1 . 1 3 . Highest Loss Streak 6 | . . 3 2 3 2 . 2 . 4 6 5 . . 1 . 3 5 1 . . 6 . 4 4 1 To Critical Strikes 2 | . . . . . . . . . . . . . . . . 1 . . . . . . . . 1 Average Slot Usage (%) 88 | . 84 97 80 95 88 83 88 84 87 88 85 92 92 86 90 91 88 89 93 92 82 86 90 87 87 Engine 2 | . 14 12 10 10 11 9 9 7 . . . . . . . . . . 5 1 . . . . . Reactor 3 | . . . . . . . . . 6 5 5 6 6 6 6 3 5 4 . . 4 3 3 3 . Treads 5 | . . . . . 8 9 9 7 6 5 6 6 6 6 6 5 5 5 5 5 4 4 3 4 7 Wheel 2 | . 28 28 22 21 3 . . . . . . . . . . . . . . . . . . . . Device 5 | . . . 9 7 . . 3 . 2 5 19 20 20 18 5 8 7 2 4 3 8 5 3 1 3 Storage 6 | . 14 14 11 11 11 9 9 7 7 6 6 6 6 6 6 5 5 6 5 5 4 6 8 4 4 Processor 12 | . 2 14 6 5 17 16 8 7 8 6 . 13 13 13 11 5 5 6 12 10 14 22 27 25 22 Hackware 29 | . . . . 10 4 13 25 32 35 39 23 20 20 19 34 41 39 44 41 45 27 28 26 31 33 Protection 4 | . . . . 9 10 9 5 5 2 5 9 5 6 6 6 5 5 5 3 5 4 3 3 . 2 Energy Cannon 1 | . . . . 2 8 1 6 . . 3 . . . . . . . . . . . . 1 . . Ballistic Gun 3 | . 24 27 17 5 5 2 3 . 4 1 2 5 11 8 6 4 2 . . . . . . . 1 Ballistic Cannon 1 | . . . . . . . . . . . . . . . . . . . 3 5 5 3 2 3 . Special Weapon 3 | . . . . . 3 9 2 7 6 3 4 6 1 . 4 4 3 4 6 5 4 4 3 3 3 Naked Turns . | . . . . . . . . . . . . . . . . . . . . . . . . . . Heaviest Build 104 | 12 49 49 53 63 68 68 73 64 73 83 83 79 80 80 80 82 80 104 78 79 78 81 79 80 62 Greatest Support 87 | 26 26 24 24 24 87 75 75 75 75 87 87 75 75 75 80 80 80 80 80 80 80 80 80 80 65 Greatest Overweight (x) 25 | . 2 2 2 4 5 . . . . 1 1 1 1 1 1 1 . 1 . . 25 1 . 13 1 Average Overweight (x) . | . . 1 1 2 . . . . . . . . . . . . . . . . . . . . . Largest Inventory Capacity 20 | 8 20 20 20 20 20 20 20 20 20 20 20 20 20 20 20 20 20 20 20 20 20 15 15 17 17 Average Capacity 17 | 7 8 20 20 20 20 20 20 20 20 20 20 20 20 20 20 20 20 20 20 20 5 8 15 15 17 Most Carried 20 | . 9 13 16 20 20 20 20 20 20 20 20 20 20 20 20 20 20 20 20 19 20 15 15 17 17 Average Carried 16 | . 3 11 12 18 19 17 19 19 19 17 18 19 19 19 19 19 19 19 19 18 5 6 14 14 15 Final Capacity 20 | 8 20 20 20 20 20 20 20 20 20 20 20 20 20 20 20 20 20 20 20 20 5 15 15 17 17 Final Carried 20 | . 9 11 16 20 20 16 20 20 20 19 20 20 19 20 20 20 20 20 20 19 5 14 15 14 17 Class Distribution -------------------- 67% | Botlord-Mutant 11% | Bothacker-Mutant 10% | Mutant 6% | Hacker-Mutant Dominant Class ---------------- Mutant | -10/Materials Mutant | -10/Mines Mutant | -9/Materials Mutant | -9/Storage Bothacker-Mutant | -9/Garrison Bothacker-Mutant | -8/Materials Bothacker-Mutant | -8/Garrison Botlord-Mutant | -7/Factory Botlord-Mutant | -7/Garrison Botlord-Mutant | -6/Factory Bothacker-Mutant | -6/Extension Commander-Mutant | -6/Cetus Bothacker-Mutant | -6/Archives Bothacker-Mutant | -6/Hub_04(d) Botlord-Mutant | -6/Garrison Botlord-Mutant | -5/Factory Botlord-Mutant | -5/Garrison Botlord-Mutant | -5/Factory Botlord-Mutant | -5/Garrison Botlord-Mutant | -4/Factory Botlord-Mutant | -4/Garrison Botlord-Mutant | -3/Research Botlord-Mutant | -3/Quarantine Botlord-Mutant | -3/Section 7 Botlord-Mutant | -3/Garrison Resources | -11 -10 -10 -9 -9 -9 -8 -8 -7 -7 -6 -6 -6 -6 -6 -6 -5 -5 -5 -5 -4 -4 -3 -3 -3 -3 ----------- Run | Scr Mat Min Mat Sto Gar Mat Gar Fac Gar Fac Ext Cet Arc Hub Gar Fac Gar Fac Gar Fac Gar Res Qua Sec Gar Matter Collected 13774 | 250 210 124 103 208 461 264 250 15 739 1215 751 204 69 185 943 371 751 637 1139 648 946 647 637 1427 580 Remotely 20 | . . . . . . . . . . . . . . . . . . 20 . . . . . . . Salvage Created 13093 | . 349 129 169 713 1456 153 530 43 676 2391 360 207 33 452 1334 384 644 380 522 381 367 288 619 513 . Parts 574 | . 16 14 16 40 63 3 21 3 23 88 10 5 2 23 61 21 24 27 19 11 16 8 45 15 . Haulers Intercepted 2 | . . . 1 . . . . . . 1 . . . . . . . . . . . . . . . Recyclers Shooed 10 | . 1 . . 2 . . . . . 4 1 . . . . 2 . . . . . . . . . Parts Field Recycled . | . . . . . . . . . . . . . . . . . . . . . . . . . . Retrieved Matter . | . . . . . . . . . . . . . . . . . . . . . . . . . . Parts Self-Destructed . | . . . . . . . . . . . . . . . . . . . . . . . . . . Prevented . | . . . . . . . . . . . . . . . . . . . . . . . . . . Kills | -11 -10 -10 -9 -9 -9 -8 -8 -7 -7 -6 -6 -6 -6 -6 -6 -5 -5 -5 -5 -4 -4 -3 -3 -3 -3 ------- Run | Scr Mat Min Mat Sto Gar Mat Gar Fac Gar Fac Ext Cet Arc Hub Gar Fac Gar Fac Gar Fac Gar Res Qua Sec Gar Combat Hostiles Destroyed 231 | . 9 8 2 14 30 2 12 1 7 42 4 3 . 6 11 6 10 3 11 8 11 5 12 14 . Melee 6 | . . . . . . . 1 . 1 . 1 . . . . . . 3 . . . . . . . Guns 90 | . 9 8 2 10 4 2 6 1 2 12 3 3 . 6 9 6 7 . . . . . . . . Cannons 96 | . . . . 2 9 . 3 . 1 25 . . . . . . . . 11 4 11 5 11 14 . AOE 37 | . . . . 1 17 . 2 . 3 5 . . . . 2 . 3 . . 4 . . . . . Classes Destroyed 21 | . 3 1 2 1 2 1 3 . 1 1 . . 1 . 2 . . . . . . 2 . 1 . Worker 15 | . . 1 . 1 . . . . . 9 . . . . . 1 . 3 . . . . . . . Builder 3 | . . . . . . . . . . 1 . . . . . . . . . . . . 2 . . Hauler 2 | . . . 1 . . . . . . 1 . . . . . . . . . . . . . . . Recycler 7 | . 1 . . 1 . 1 . . . 2 1 . . . . . . 1 . . . . . . . Operator 2 | . . . . . . . . . . . . . 1 1 . . . . . . . . . . . Watcher 6 | . . . 2 2 . . . . . 1 . . . . . . . . . . . . . 1 . Swarmer 37 | . 5 8 . 3 8 . . . . 7 1 . . . 4 . . . . 1 . . . . . Cutter 5 | . . . . . . . 2 . . . . . . . 3 . . . . . . . . . . Grunt 89 | . 4 . 2 6 13 1 4 1 4 25 1 1 . 4 1 2 5 1 3 6 2 1 . 2 . Brawler 9 | . . . . . . . 1 . 1 1 . . . . . . 4 . 1 . 1 . . . . Duelist 2 | . . . . . . . . . 1 1 . . . . . . . . . . . . . . . Sentry 31 | . . . . 5 4 . 4 . . 3 2 . . 2 2 1 . . 3 . 1 . 1 3 . Demolisher 1 | . . . . . . 1 . . . . . . . . . . . . . . . . . . . Specialist 3 | . . . . . . . . . . . . . . . 1 . . . . . . . 2 . . Hunter 9 | . . . . . 2 . . . . 1 . . . . . 1 . . 1 . 4 . . . . Programmer 37 | . . . . . 3 . . . 1 4 . . . . 2 2 . 3 4 1 2 . 9 6 . Heavy 2 | . . . . . . . 1 . . . . . . . . . . . 1 . . . . . . Behemoth 5 | . . . . . . . . . . . . . . . 1 . 1 . . . 1 1 . 1 . Cetus Guard 2 | . . . . . . . . . . . . 2 . . . . . . . . . . . . . Enhanced Grunt 1 | . . . . . . . . . . . . . . 1 . . . . . . . . . . . Striker 2 | . . . . . . . . . . . . . . . . . . . . . . 2 . . . Executioner 1 | . . . . . . . . . . . . . . . . . . . . . . 1 . . . Alpha 7 2 | . . . . . . . . . . . . . . . . . . . . . . . . 2 . Best Kill Streak 8 | . 3 4 2 4 8 2 3 1 4 6 2 2 1 3 3 5 7 3 3 6 3 2 6 3 . Combat Bots Only 8 | . 3 3 1 4 8 2 3 1 4 6 2 2 . 3 3 5 7 2 3 6 3 2 5 3 . Max Kills in Single Turn 4 | . 1 2 1 1 4 2 2 1 1 4 1 1 1 2 2 1 2 2 1 4 1 1 1 1 . Gunslinging 1 | . . 1 . . . . . . . . . . . . . . . . . . . . . . . Exploded 4 | . . . . 1 4 . 2 . 1 1 . . . . 2 . 2 . . 4 . . . . . Melee 1 | . . . . . . . 1 . 1 . 1 . . . . . . 1 . . . . . . . Uniques/NPCs Destroyed . | . . . . . . . . . . . . . . . . . . . . . . . . . . Combat | -11 -10 -10 -9 -9 -9 -8 -8 -7 -7 -6 -6 -6 -6 -6 -6 -5 -5 -5 -5 -4 -4 -3 -3 -3 -3 -------- Run | Scr Mat Min Mat Sto Gar Mat Gar Fac Gar Fac Ext Cet Arc Hub Gar Fac Gar Fac Gar Fac Gar Res Qua Sec Gar Damage Taken 22551 | . 356 203 305 541 1189 267 824 41 1054 3523 994 106 181 256 820 881 732 770 583 29 2888 389 1946 3377 296 Core 3543 | . 86 63 61 69 177 101 84 . 173 493 88 . . . 91 40 95 206 6 . 144 . 277 1165 124 Absorbed by Shields 1327 | . . . . . . . . . . 132 207 60 . . . . 133 . 455 12 67 191 24 . 46 Reduced by Siege Mode 674 | . . . . . . . 28 . . 285 2 6 10 5 26 56 3 . 32 . 96 . 49 76 . Redirected to Core 549 | . . . . . . . . . . . . . . . . . . . . . . . 86 463 . Regen/Repaired (Parts) 2665 | . . . . . . 340 . . . 1588 . . . . . 175 . 562 . . . . . . . Core Remaining (%) 59 | 100 . 40 . . 23 . 66 . 75 . . . . . 20 . . . 65 . 87 . . . . Volleys Fired 1462 | . 39 24 28 46 103 39 42 26 82 195 51 15 7 17 128 39 66 44 104 57 66 33 78 127 6 Largest 2 | . 2 2 2 2 2 1 2 1 1 1 2 1 2 2 2 2 2 1 1 1 2 1 1 1 1 Hottest 279 | . 40 40 40 143 130 81 135 35 100 100 43 35 70 70 240 70 279 240 70 70 140 113 113 70 75 Shots Fired 1674 | . 60 39 55 76 130 39 46 26 85 196 54 17 11 25 160 40 78 45 99 57 86 33 78 132 7 Gun 721 | . 60 39 55 63 40 22 24 1 50 71 12 17 11 25 132 25 53 19 . . . . . . 2 Cannon 599 | . . . . 13 53 . 17 . 11 85 . . . . . . . 4 70 49 75 30 65 127 . Launcher 58 | . . . . . 18 . 1 . 4 20 8 . . . 3 . 4 . . . . . . . . Special 296 | . . . . . 19 17 4 25 20 20 34 . . . 25 15 21 22 29 8 11 3 13 5 5 Kinetic 981 | . 60 39 55 6 40 8 24 1 50 71 12 17 11 25 126 25 29 5 70 49 75 26 29 127 1 Thermal 302 | . . . . 33 53 14 17 . 11 85 . . . . 6 . 24 18 . . . 4 36 . 1 Explosive 45 | . . . . . 18 . 1 . . 11 8 . . . 3 . 4 . . . . . . . . Electromagnetic 50 | . . . . 37 . . . . 4 9 . . . . . . . . . . . . . . . Robot Hit Streak 31 | . 9 7 10 6 31 9 17 9 30 26 27 5 8 15 17 19 9 9 21 6 14 9 18 24 5 Robot Miss Streak 8 | . 4 4 2 3 3 2 2 5 8 4 1 1 1 2 2 1 2 1 2 1 2 3 2 2 1 Penetration Max 2 | . . . . . . 1 2 . . 1 . 1 . 1 1 1 . . . . . . . . . Secondary Targets 3 | . 1 1 . 1 . . . . . . . . . . . . . . . . . . . . . Max Gunslinging Chain 1 | . 1 1 . 1 . . . . . . . . . . . . . . . . . . . . . Shots Hit Robots 1150 | . 37 20 39 44 102 26 38 17 66 158 50 13 9 20 74 35 55 26 77 21 63 16 50 90 4 Core Hits 566 | . 17 10 14 21 74 4 20 1 24 116 21 7 6 13 42 13 34 12 26 11 19 8 18 35 . Critical Kills 22 | . 1 . 1 1 . . . . 1 . 1 1 1 7 7 . . . . . . . 1 . . Critical Parts Destroyed 17 | . 1 . . . . . . . . 1 . 1 . 2 7 3 2 . . . . . . . . Critical Strikes 84 | . 2 . 1 3 . . 1 . 2 1 2 2 1 9 14 3 3 . 4 3 10 4 4 15 . Burn 2 | . . . . 2 . . . . . . . . . . . . . . . . . . . . . Meltdown 2 | . . . . 1 . . . . . . . . . . . . . . . . . . 1 . . Destroy 38 | . 2 . 1 . . . . . 1 1 1 2 1 9 14 3 3 . . . . . . . . Blast 39 | . . . . . . . . . . . . . . . . . . . 4 3 10 4 3 15 . Sever 3 | . . . . . . . 1 . 1 . 1 . . . . . . . . . . . . . . Melee Attacks 48 | . . . . . . . 10 4 17 . 10 . . . . . . 7 . . . . . . . Impact 1 | . . . . . . . . . . . 1 . . . . . . . . . . . . . . Slashing 47 | . . . . . . . 10 4 17 . 9 . . . . . . 7 . . . . . . . Piercing . | . . . . . . . . . . . . . . . . . . . . . . . . . . Sneak Attacks 6 | . . . . . . . 1 . . . 5 . . . . . . . . . . . . . . Combat Hostiles 2 | . . . . . . . 1 . . . 1 . . . . . . . . . . . . . . Follow-up Attacks . | . . . . . . . . . . . . . . . . . . . . . . . . . . Damage Inflicted 37247 | . 490 254 324 991 4321 334 1502 24 1572 7382 1295 518 249 816 1885 919 1796 837 2263 1543 2131 610 1892 3299 . Guns 11051 | . 490 254 324 737 484 334 461 24 778 1609 277 518 249 816 1577 919 1160 40 . . . . . . . Cannons 18616 | . . . . 123 2399 . 759 . 378 3957 . . . . . . . . 2263 805 2131 610 1892 3299 . Explosions 6166 | . . . . 131 1438 . 90 . 154 1816 316 . . . 308 . 636 539 . 738 . . . . . Melee 1374 | . . . . . . . 192 . 262 . 670 . . . . . . 250 . . . . . . . Ramming 40 | . . . . . . . . . . . 32 . . . . . . 8 . . . . . . . Kinetic 19423 | . 490 254 324 57 484 170 461 24 778 1609 277 518 249 816 1577 919 500 . 2263 805 2131 610 808 3299 . Thermal 11609 | . . . . 548 2399 164 759 . 378 4839 . . . . . . 660 40 . 738 . . 1084 . . Explosive 3961 | . . . . . 1438 . 90 . . 634 316 . . . 308 . 636 539 . . . . . . . Electromagnetic 840 | . . . . 386 . . . . 154 300 . . . . . . . . . . . . . . . Impact 29 | . . . . . . . . . . . 29 . . . . . . . . . . . . . . Slashing 1345 | . . . . . . . 192 . 262 . 641 . . . . . . 250 . . . . . . . Piercing . | . . . . . . . . . . . . . . . . . . . . . . . . . . Highest Corruption 26 | . . . . . 2 . . . 11 9 14 14 14 14 17 5 20 22 26 1 4 . . 11 11 Average Corruption 11 | . . . . . 1 . . . 10 5 11 14 14 11 7 4 16 20 25 1 3 . . 6 11 Corruption Purged 10 | . . . . . . . . . . 3 . . . 7 . . . . . . . . . . . Corruption Blocked 18 | . . . . . . . . . . . . . . . . . . . . . . . 16 2 . Effects 546 | . . . . . 7 . . . 52 40 47 16 6 23 45 13 56 68 84 3 35 . . 37 14 Message Errors 115 | . . . . . 2 . . . 16 8 9 4 4 4 10 1 12 11 20 . 3 . . 7 4 Matter Fused 134 | . . . . . . . . . 11 13 9 4 1 3 9 7 20 21 16 1 9 . . 9 1 Heat Flow Errors 81 | . . . . . 2 . . . 8 8 8 3 . 4 7 1 9 7 16 . 4 . . 3 1 Energy Discharges 61 | . . . . . 2 . . . 4 4 8 2 . 3 4 2 4 9 5 1 7 . . 4 2 Parts Rejected 9 | . . . . . . . . . 2 . 1 . . . 1 . . 2 1 . . . . 2 . Data Loss (minor) 70 | . . . . . . . . . 6 4 9 . 1 6 5 2 5 9 10 1 6 . . 4 2 Data Loss (major) 25 | . . . . . . . . . 2 2 2 . . 2 2 . 3 3 2 . 4 . . 1 2 Misfires 20 | . . . . . . . . . 3 1 . 2 . 1 1 . 1 1 3 . 1 . . 5 1 Alerts 14 | . . . . . 1 . . . . . . 1 . . 2 . 2 2 3 . . . . 2 1 Misdirections 3 | . . . . . . . . . . . . . . . . . . 3 . . . . . . . Weapon Failures 14 | . . . . . . . . . . . 1 . . . 4 . . . 8 . 1 . . . . Overload Shots 8 | . . . . . . . . . . . . . . . 1 . 6 1 . . . . . . . Overflow Damage 839 | . . . . 1 106 . 23 . . 162 78 . . . . . . 67 39 97 43 21 116 86 . Projectiles 378 | . . . . . 19 . 23 . . 31 . . . . . . . . 39 . 43 21 116 86 . Explosions 364 | . . . . 1 87 . . . . 131 18 . . . . . . 30 . 97 . . . . . Melee 97 | . . . . . . . . . . . 60 . . . . . . 37 . . . . . . . Knockbacks 51 | . . . . . . . . . . . . . . . . . . . 4 2 10 3 14 18 . Impact . | . . . . . . . . . . . . . . . . . . . . . . . . . . Kinetic 44 | . . . . . . . . . . . . . . . . . . . 4 2 10 2 10 16 . Secondary 7 | . . . . . . . . . . . . . . . . . . . . . . 1 4 2 . Self-Inflicted Damage 642 | . . . . 39 149 . . . . 215 118 . . . . . . 121 . . . . . . . Shots 24 | . . . . 1 7 . . . . 11 3 . . . . . . 2 . . . . . . . Rammed 3 | . . . . . . . . . . . 2 . . . . . . 1 . . . . . . . Targets Rammed 3 | . . . . . . . . . . . 2 . . . . . . 1 . . . . . . . Kicked . | . . . . . . . . . . . . . . . . . . . . . . . . . . Crushed . | . . . . . . . . . . . . . . . . . . . . . . . . . . Highest Temperature 453 | . 3 . 15 453 248 370 348 . 366 344 251 245 . 195 328 95 207 249 253 18 315 108 . 181 47 Average Temperature 93 | . 2 . 7 112 89 161 117 . 114 99 93 115 . 69 101 44 92 77 69 3 140 41 . 88 47 Received Heat Transfer 3679 | . 144 . 135 162 348 108 279 36 207 972 134 46 18 60 99 174 170 12 56 4 231 27 36 201 20 Effects 6 | . . . . 2 . . 3 . . . . . . . . . . . . . 1 . . . . Shutdowns 1 | . . . . 1 . . . . . . . . . . . . . . . . . . . . . Energy Bleed 2 | . . . . . . . 2 . . . . . . . . . . . . . . . . . . Short Circuit 2 | . . . . 1 . . 1 . . . . . . . . . . . . . . . . . . Damage (minor) 1 | . . . . . . . . . . . . . . . . . . . . . 1 . . . . Siege Activations 67 | . . . . . . . 1 . . 20 2 2 2 3 5 1 3 . 8 1 6 2 3 8 . Total Turns 1113 | . . . . . . . 23 . . 327 11 23 9 22 134 40 64 . 113 61 112 12 41 121 . Longest Duration 76 | . . . . . . . 23 . . 52 9 14 7 11 76 40 23 . 32 61 33 8 20 42 . Robots Corrupted 1 | . . . . 1 . . . . . . . . . . . . . . . . . . . . . Combat Hostiles . | . . . . . . . . . . . . . . . . . . . . . . . . . . Parts Fried 7 | . . . . 5 . . . . 1 1 . . . . . . . . . . . . . . . Impact Corruptions 1 | . . . . . . . . . . . . . . . . . . . . . . . . 1 . Robots Melted 2 | . . . . 1 . . . . . . . . . . . . . . . . . . 1 . . Combat Hostiles 2 | . . . . 1 . . . . . . . . . . . . . . . . . . 1 . . Parts Melted 13 | . . . . . 2 . 3 . . 2 . . . . . . 1 . 2 1 . 1 1 . . Heat Transferred 12579 | . . . . 1038 2775 259 900 . 450 5225 . . . . . . 718 37 . 400 . . 777 . . Parts Sabotaged . | . . . . . . . . . . . . . . . . . . . . . . . . . . Parts Stolen . | . . . . . . . . . . . . . . . . . . . . . . . . . . Parts Stripped . | . . . . . . . . . . . . . . . . . . . . . . . . . . Power Chain Reactions 4 | . . . . 2 . . . . 1 1 . . . . . . . . . . . . . . . Missiles Intercepted . | . . . . . . . . . . . . . . . . . . . . . . . . . . Alert | -11 -10 -10 -9 -9 -9 -8 -8 -7 -7 -6 -6 -6 -6 -6 -6 -5 -5 -5 -5 -4 -4 -3 -3 -3 -3 ------- Run | Scr Mat Min Mat Sto Gar Mat Gar Fac Gar Fac Ext Cet Arc Hub Gar Fac Gar Fac Gar Fac Gar Res Qua Sec Gar Peak Influence 1237 | . 309 249 306 513 1237 892 1050 586 472 777 398 487 347 375 804 595 657 462 513 631 477 313 128 334 200 Initial 602 | . . 54 11 128 . 602 532 550 30 239 240 188 170 121 104 422 286 315 51 251 168 267 15 14 165 Average 308 | . 134 169 190 350 604 666 859 328 231 403 245 334 292 152 428 443 503 185 269 339 234 99 33 204 148 Maximum Alert Level 4 | . 1 1 1 2 4 3 3 2 2 3 1 2 1 1 3 2 2 2 2 2 2 1 . 1 1 Low Security (%) 39 | 100 71 43 48 12 25 . . 50 50 23 38 18 12 73 10 . . 48 44 8 44 83 100 41 89 Level 1 29 | . 28 56 51 44 7 . . 2 24 21 61 57 87 26 44 6 32 43 32 62 33 16 . 58 10 Level 2 22 | . . . . 42 22 74 13 47 24 43 . 24 . . 26 93 67 7 23 29 21 . . . . Level 3 7 | . . . . . 32 25 86 . . 10 . . . . 18 . . . . . . . . . . Level 4 . | . . . . . 11 . . . . . . . . . . . . . . . . . . . . Level 5 . | . . . . . . . . . . . . . . . . . . . . . . . . . . High Security . | . . . . . . . . . . . . . . . . . . . . . . . . . . Max Security . | . . . . . . . . . . . . . . . . . . . . . . . . . . Squads Dispatched 63 | . . . 1 3 . 6 . 3 . 14 . . . 5 . 3 . 4 . 4 . 6 5 9 . Investigation 12 | . . . . . . 1 . 2 . 3 . . . . . . . . . 1 . 5 . . . Extermination 17 | . . . . . . . . . . 5 . . . . . 1 . 2 . 1 . . 3 5 . Reinforcement 27 | . . . 1 3 . 3 . . . 3 . . . 4 . 2 . 2 . 2 . 1 2 4 . Assault . | . . . . . . . . . . . . . . . . . . . . . . . . . . Garrison 7 | . . . . . . 2 . 1 . 3 . . . 1 . . . . . . . . . . . Intercept . | . . . . . . . . . . . . . . . . . . . . . . . . . . Searches Triggered . | . . . . . . . . . . . . . . . . . . . . . . . . . . Construction Impeded 5 | . . . 1 . . . . . . 1 . . . 1 . 2 . . . . . . . . . Haulers Reinforced 3 | . . . . . . . . . . 1 . . . 1 . . . . . . . . . 1 . Active Scanning Responses . | . . . . . . . . . . . . . . . . . . . . . . . . . . Cargo Convoy Interrupts 1 | . . . . . . . . . . . . . . . . . . 1 . . . . . . . Alert ID Control Effect 44 | . . . . . . . . . . . . . . . 3 12 8 . 8 4 2 1 4 . 2 Stealth | -11 -10 -10 -9 -9 -9 -8 -8 -7 -7 -6 -6 -6 -6 -6 -6 -5 -5 -5 -5 -4 -4 -3 -3 -3 -3 --------- Run | Scr Mat Min Mat Sto Gar Mat Gar Fac Gar Fac Ext Cet Arc Hub Gar Fac Gar Fac Gar Fac Gar Res Qua Sec Gar Distress Signals 32 | . 3 . . 2 . 1 . . . 5 1 2 . 1 . 6 . . . . . 7 2 2 . Communications Jammed 270 | . . . . . . . . . . 21 . . . . . . . 64 . 24 . 56 1 104 . Distress Signals 270 | . . . . . . . . . . 21 . . . . . . . 64 . 24 . 56 1 104 . Times Spotted 599 | . 21 9 11 22 33 12 19 7 28 76 21 15 5 22 26 35 36 17 33 27 24 20 27 45 8 Peak Tracking Total 11 | . 6 3 3 8 4 7 4 2 6 5 4 5 1 4 4 9 6 6 9 3 8 5 6 11 4 Tactical Retreats 29 | . 2 1 1 1 2 1 3 . 2 3 . 1 . . 1 2 3 . 2 . . . . 3 1 Traps | -11 -10 -10 -9 -9 -9 -8 -8 -7 -7 -6 -6 -6 -6 -6 -6 -5 -5 -5 -5 -4 -4 -3 -3 -3 -3 ------- Run | Scr Mat Min Mat Sto Gar Mat Gar Fac Gar Fac Ext Cet Arc Hub Gar Fac Gar Fac Gar Fac Gar Res Qua Sec Gar Traps Triggered 21 | . . . . . 1 . 1 . 1 3 . . . . 5 . 2 1 1 . 1 2 3 . . Indirectly . | . . . . . . . . . . . . . . . . . . . . . . . . . . Trap Hack Attempts . | . . . . . . . . . . . . . . . . . . . . . . . . . . Triggered . | . . . . . . . . . . . . . . . . . . . . . . . . . . Disarmed . | . . . . . . . . . . . . . . . . . . . . . . . . . . Reprogrammed 9 | . . . . . . . . . . . . . . . . . . . . 9 . . . . . Reused 3 | . . . . . . . . . . . . . . . . . . . . 3 . . . . . Traps Extracted . | . . . . . . . . . . . . . . . . . . . . . . . . . . Installed . | . . . . . . . . . . . . . . . . . . . . . . . . . . Triggered 5 | . . . . 1 . . . . . . . . . . . . . . . 3 . . . . 1 Machines | -11 -10 -10 -9 -9 -9 -8 -8 -7 -7 -6 -6 -6 -6 -6 -6 -5 -5 -5 -5 -4 -4 -3 -3 -3 -3 ---------- Run | Scr Mat Min Mat Sto Gar Mat Gar Fac Gar Fac Ext Cet Arc Hub Gar Fac Gar Fac Gar Fac Gar Res Qua Sec Gar Machines Disabled 113 | . . . . 3 6 1 5 1 7 26 1 1 3 1 3 1 5 8 7 12 6 4 4 7 1 Max in Single Turn 11 | . . . . 1 1 1 1 . 2 11 . 1 1 . 1 1 1 3 1 5 1 1 1 1 1 Garrison Access 3 | . . . . . . . . . . . . . . . . . . . . . . 2 1 . . Garrison Relay 31 | . . . . . 4 . 3 . 6 . . . . . 3 . 4 . 5 . 5 . . . 1 Machines Sabotaged . | . . . . . . . . . . . . . . . . . . . . . . . . . . Garrisons Compromised . | . . . . . . . . . . . . . . . . . . . . . . . . . . Overloaded Fab Kills . | . . . . . . . . . . . . . . . . . . . . . . . . . . Hacking | -11 -10 -10 -9 -9 -9 -8 -8 -7 -7 -6 -6 -6 -6 -6 -6 -5 -5 -5 -5 -4 -4 -3 -3 -3 -3 --------- Run | Scr Mat Min Mat Sto Gar Mat Gar Fac Gar Fac Ext Cet Arc Hub Gar Fac Gar Fac Gar Fac Gar Res Qua Sec Gar Machines Accessed 110 | . 3 . 2 9 3 3 3 5 1 21 10 1 1 5 2 3 1 6 4 8 2 4 7 6 . Terminals 76 | . 3 . 2 8 3 1 3 3 1 12 10 1 . 4 2 . 1 3 4 4 2 2 5 2 . Fabricators 5 | . . . . . . . . 1 . 2 . . . . . . . 1 . 1 . . . . . Repair Stations 10 | . . . . . . 1 . . . 4 . . . . . 1 . 1 . 1 . . . 2 . Recycling Units 1 | . . . . . . . . . . . . . . . . 1 . . . . . . . . . Scanalyzers 4 | . . . . . . . . . . 1 . . . . . . . . . 1 . . 1 1 . Garrison Access 13 | . . . . 1 . 1 . 1 . 2 . . . 1 . 1 . 1 . 1 . 2 1 1 . Total Hacks 330 | . 9 . 4 19 4 7 6 15 3 91 17 1 25 19 4 10 1 16 5 46 4 6 11 7 . Successful 208 | . 2 . 2 15 3 5 3 8 1 66 11 1 25 10 1 5 1 10 3 22 1 5 6 2 . Failed 121 | . 7 . 2 4 1 2 3 7 2 24 6 . . 9 3 5 . 6 2 24 3 1 5 5 . Catastrophic 14 | . 2 . . 1 . . 1 1 . 1 . . . 2 . . . 2 1 . . . 2 1 . Database Lockouts 1 | . . . . . . . . . . 1 . . . . . . . . . . . . . . . Manual 129 | . 6 . . 9 . 3 . 7 . 33 3 1 . 13 . 4 . 11 . 27 . 2 7 3 . Terminals 216 | . 9 . 4 16 4 2 6 10 3 62 17 1 . 18 4 . 1 9 5 28 4 4 7 2 . Fabricators 9 | . . . . . . . . 1 . 4 . . . . . . . 2 . 2 . . . . . Repair Stations 33 | . . . . . . 3 . . . 16 . . . . . 5 . 4 . 3 . . . 2 . Recycling Units 3 | . . . . . . . . . . . . . . . . 3 . . . . . . . . . Scanalyzers 13 | . . . . . . . . . . 4 . . . . . . . . . 6 . . 1 2 . Garrison Access 31 | . . . . 3 . 2 . 4 . 5 . . . 1 . 2 . 1 . 7 . 2 3 1 . Terminal Hacks 112 | . 2 . 2 10 3 . 3 2 1 31 9 1 25 3 1 . 1 1 3 9 1 2 2 . . Record 27 | . . . . . . . . . . 1 . . 25 . . . . . . . . . 1 . . Part Schematic 10 | . . . . . . . . 1 . 6 . . . . . . . . . 3 . . . . . Robot Schematic 1 | . . . . . . . . . . 1 . . . . . . . . . . . . . . . Robot Analysis 1 | . . . . . . . . . . 1 . . . . . . . . . . . . . . . Prototype ID Bank 3 | . . . 1 . . . . . . 1 . . . . . . . . . . . 1 . . . Open Door 15 | . . . . 4 . . . . . . 9 1 . . . . . . 1 . . . . . . Branch Access Points 1 | . . . . . . . . . . 1 . . . . . . . . . . . . . . . Emergency Access Points 7 | . . . . . 1 . 1 . 1 . . . . . 1 . 1 . 1 . 1 . . . . Terminal Index 3 | . . . . . . . . 1 . 1 . . . . . . . . . 1 . . . . . Repair Station Index 1 | . . . . . . . . . . 1 . . . . . . . . . . . . . . . Garrison Index 1 | . . . . . . . . . . 1 . . . . . . . . . . . . . . . Unreport Threat 8 | . . . . 3 . . . . . 3 . . . 2 . . . . . . . . . . . Locate Traps 7 | . 1 . . 1 . . . . . 3 . . . . . . . 1 . 1 . . . . . Reprogram Traps 2 | . . . . . . . . . . . . . . . . . . . . 2 . . . . . Dispatch Records 1 | . . . . . . . . . . 1 . . . . . . . . . . . . . . . Transport Status 1 | . . . . . . . . . . 1 . . . . . . . . . . . . . . . Garrison Status 1 | . . . . . . . . . . 1 . . . . . . . . . . . . . . . Recall Investigation 1 | . . . . . . . . . . 1 . . . . . . . . . . . . . . . Recall Reinforcements 4 | . . . . 2 . . . . . . . . . . . . . . . 1 . . 1 . . Hauler Manifests 2 | . . . . . . . . . . 2 . . . . . . . . . . . . . . . Registered Components 1 | . . . . . . . . . . 1 . . . . . . . . . . . . . . . Zone Layout 9 | . 1 . 1 . . . . . . 4 . . . 1 . . . . . 1 . 1 . . . Garrison Registry 3 | . . . . . 1 . 1 . . . . . . . . . . . 1 . . . . . . Patrol Navigation 1 | . . . . . . . 1 . . . . . . . . . . . . . . . . . . Security Stations 1 | . . . . . 1 . . . . . . . . . . . . . . . . . . . . Fabricator Hacks 3 | . . . . . . . . . . 3 . . . . . . . . . . . . . . . Load Schematic 1 | . . . . . . . . . . 1 . . . . . . . . . . . . . . . Build 2 | . . . . . . . . . . 2 . . . . . . . . . . . . . . . Repair Station Hacks 19 | . . . . . . 2 . . . 11 . . . . . 2 . 4 . . . . . . . Scan Component 10 | . . . . . . 1 . . . 6 . . . . . 1 . 2 . . . . . . . Repair 9 | . . . . . . 1 . . . 5 . . . . . 1 . 2 . . . . . . . Recycling Unit Hacks . | . . . . . . . . . . . . . . . . . . . . . . . . . . Scanalyzer 8 | . . . . . . . . . . 4 . . . . . . . . . 2 . . 1 1 . Insert Component 4 | . . . . . . . . . . 1 . . . . . . . . . 1 . . 1 1 . Analyze 4 | . . . . . . . . . . 3 . . . . . . . . . 1 . . . . . Garrison Access Hacks 13 | . . . . 1 . 1 . 1 . 2 . . . 1 . 1 . 1 . 1 . 2 1 1 . Unlock Access 10 | . . . . 1 . 1 . 1 . 2 . . . 1 . 1 . 1 . 1 . . . 1 . Seal Access 3 | . . . . . . . . . . . . . . . . . . . . . . 2 1 . . Unauthorized Hacks 53 | . . . . 4 . 2 . 5 . 15 2 . . 6 . 2 . 4 . 10 . 1 2 . . Terminals 40 | . . . . 2 . 1 . 3 . 13 2 . . 6 . . . 4 . 6 . 1 2 . . Track 4 | . . . . . . . . . . 3 . . . 1 . . . . . . . . . . . Botnet 22 | . . . . 2 . . . 2 . 5 1 . . 3 . . . 3 . 4 . 1 1 . . Detonate 2 | . . . . . . . . . . 2 . . . . . . . . . . . . . . . Disrupt 4 | . . . . . . . . . . 2 . . . 1 . . . . . 1 . . . . . Operators 8 | . . . . . . 1 . 1 . 1 1 . . 1 . . . 1 . 1 . . 1 . . Fabricators 1 | . . . . . . . . . . . . . . . . . . . . 1 . . . . . Fabnet 1 | . . . . . . . . . . . . . . . . . . . . 1 . . . . . Repair Stations . | . . . . . . . . . . . . . . . . . . . . . . . . . . Recycling Units 2 | . . . . . . . . . . . . . . . . 2 . . . . . . . . . Monitor 1 | . . . . . . . . . . . . . . . . 1 . . . . . . . . . Reject 1 | . . . . . . . . . . . . . . . . 1 . . . . . . . . . Scanalyzers . | . . . . . . . . . . . . . . . . . . . . . . . . . . Garrison Access 10 | . . . . 2 . 1 . 2 . 2 . . . . . . . . . 3 . . . . . Broadcast 2 | . . . . 1 . . . . . . . . . . . . . . . 1 . . . . . Reprogram 6 | . . . . 1 . 1 . 1 . 2 . . . . . . . . . 1 . . . . . Intercept 1 | . . . . . . . . . . . . . . . . . . . . 1 . . . . . Watchers 1 | . . . . . . . . 1 . . . . . . . . . . . . . . . . . Data Cores Recovered . | . . . . . . . . . . . . . . . . . . . . . . . . . . Used . | . . . . . . . . . . . . . . . . . . . . . . . . . . Hacking Detections 85 | . 3 . 2 4 2 3 3 5 1 19 5 . . 5 2 3 . 6 2 5 2 2 6 5 . Full Trace Events 6 | . . . . . . . . 1 1 2 . . . . 1 . . . . . 1 . . . . Feedback Events 1 | . . . . . . . . . . 1 . . . . . . . . . . . . . . . Hackware Fried 1 | . . . . . . . . . . 1 . . . . . . . . . . . . . . . Feedback Blocked . | . . . . . . . . . . . . . . . . . . . . . . . . . . Robot Schematics Acquired 2 | . . . . . . . . . . 1 . . . . . . . . . . . . 1 . . Robots Built . | . . . . . . . . . . . . . . . . . . . . . . . . . . Authchips . | . . . . . . . . . . . . . . . . . . . . . . . . . . Time . | . . . . . . . . . . . . . . . . . . . . . . . . . . Total Robot Build Rating . | . . . . . . . . . . . . . . . . . . . . . . . . . . Part Schematics Acquired 14 | . . . . . . . . 1 . 7 . . . . . . . . . 3 . . 3 . . Parts Built 4 | . . . . . . . . . . 4 . . . . . . . . . . . . . . . Authchips . | . . . . . . . . . . . . . . . . . . . . . . . . . . Time 234 | . . . . . . . . . . 234 . . . . . . . . . . . . . . . Total Part Build Rating 28 | . . . . . . . . . . 28 . . . . . . . . . . . . . . . Parts Repaired 8 | . . . . . . 1 . . . 5 . . . . . 1 . 1 . . . . . . . Time 500 | . . . . . . 62 . . . 173 . . . . . 49 . 216 . . . . . . . Parts Recycled . | . . . . . . . . . . . . . . . . . . . . . . . . . . Recycled Matter . | . . . . . . . . . . . . . . . . . . . . . . . . . . Retrieved Matter . | . . . . . . . . . . . . . . . . . . . . . . . . . . Retrieved Components . | . . . . . . . . . . . . . . . . . . . . . . . . . . Parts Scanalyzed 2 | . . . . . . . . . . 1 . . . . . . . . . 1 . . . . . Part Schematics Acquired 1 | . . . . . . . . . . 1 . . . . . . . . . . . . . . . Parts Damaged . | . . . . . . . . . . . . . . . . . . . . . . . . . . Bothacking | -11 -10 -10 -9 -9 -9 -8 -8 -7 -7 -6 -6 -6 -6 -6 -6 -5 -5 -5 -5 -4 -4 -3 -3 -3 -3 ------------ Run | Scr Mat Min Mat Sto Gar Mat Gar Fac Gar Fac Ext Cet Arc Hub Gar Fac Gar Fac Gar Fac Gar Res Qua Sec Gar Used RIF Installer 9 | . . . . . 2 . 2 . 1 . . . . . 1 . 1 . 1 . 1 . . . . Coupler Efficiency 1 | . . . . . . . . . . . . . . . . . . . . . 1 . . . . Threat Obfuscator 2 | . . . . . . . 1 . . . . . . . . . . . 1 . . . . . . Signal Jammer 1 | . . . . . . . 1 . . . . . . . . . . . . . . . . . . Robot Detection 1 | . . . . . . . . . . . . . . . . . 1 . . . . . . . . Patrol Navigation 1 | . . . . . 1 . . . . . . . . . . . . . . . . . . . . Alert ID Control 1 | . . . . . . . . . . . . . . . 1 . . . . . . . . . . Structural Interface 1 | . . . . . . . . . 1 . . . . . . . . . . . . . . . . Robots Hacked 137 | . . . . . . 8 . 8 14 12 2 . . . 10 10 14 9 15 3 10 7 6 3 6 Non-combat 33 | . . . . . . 6 . 5 . 6 . . . . . 3 . 7 1 3 . 1 . 1 . Combat 104 | . . . . . . 2 . 3 14 6 2 . . . 10 7 14 2 14 . 10 6 6 2 6 Robot Hacks Applied 145 | . . . . . . 9 . 13 14 14 2 . . . 10 10 14 15 16 6 10 2 5 1 4 deconstruct_machine 1 | . . . . . . . . 1 . . . . . . . . . . . . . . . . . ignore_repairs 3 | . . . . . . 1 . . . . . . . . . . . 2 . . . . . . . map_walls 2 | . . . . . . 1 . . . . . . . . . . . . . . . . . 1 . ignore_parts 1 | . . . . . . . . . . . . . . . . . . 1 . . . . . . . purge_threat 12 | . . . . . . 1 . 4 . 1 . . . . . . . 2 1 2 . 1 . . . locate_traps 1 | . . . . . . . . . . . . . . . . . . 1 . . . . . . . reprogram_traps 1 | . . . . . . . . . . . . . . . . . . 1 . . . . . . . block_reporting 4 | . . . . . . . . 1 . 2 . . . . . . . 1 . . . . . . . clear_recycling 1 | . . . . . . . . . . . . . . . . . . 1 . . . . . . . mark_security 1 | . . . . . . . . . . . . . . . . . . . . 1 . . . . . scatter_targeting 1 | . . . . . . . . . . . . . . . . . . . . . . . 1 . . overload_power 4 | . . . . . . . . . 2 . . . . . . . . . . . 2 . . . . amplify_resonance 1 | . . . . . . . . . 1 . . . . . . . . . . . . . . . . disable_weapons 1 | . . . . . . . . . . . . . . . . . . . . . 1 . . . . overwrite_iff 39 | . . . . . . . . . 4 5 1 . . . 7 5 8 1 3 . 4 . 1 . . formatsys_low 18 | . . . . . . 4 . 3 . 4 . . . . . 2 . 2 1 1 . 1 . . . formatsys_high 54 | . . . . . . 2 . 4 7 2 1 . . . 3 3 6 3 11 2 3 . 3 . 4 Relay Couplers Released 138 | . . . . . 16 . 13 4 21 . . . . . 19 . 16 . 17 . 23 4 . . 5 Machine Destruction 122 | . . . . . 16 . 13 . 21 . . . . . 15 . 16 . 17 . 19 . . . 5 Programmers 16 | . . . . . . . . 4 . . . . . . 4 . . . . . 4 4 . . . Attached 83 | . . . . . . 4 4 2 10 3 1 . . 1 11 1 11 2 12 2 13 . 1 2 3 Fabnet Peak Effective % 3 | . . . . . . . . . . . . . . . . . . . . . . 3 3 3 3 Autooverrided 11 | . . . . . . . . . . . . . . . . . . . . . . 6 1 2 2 Robots Rewired 34 | . . . . . 4 . 3 . . . 18 . . . 6 1 . . 2 . . . . . . Allies Hacked 4 | . . . . . . . . . . . . . . . . 1 . 2 . . . . . 1 . Hacks Repelled . | . . . . . . . . . . . . . . . . . . . . . . . . . . Allies | -11 -10 -10 -9 -9 -9 -8 -8 -7 -7 -6 -6 -6 -6 -6 -6 -5 -5 -5 -5 -4 -4 -3 -3 -3 -3 -------- Run | Scr Mat Min Mat Sto Gar Mat Gar Fac Gar Fac Ext Cet Arc Hub Gar Fac Gar Fac Gar Fac Gar Res Qua Sec Gar Total Allies 188 | . . 2 . 1 4 9 3 8 11 14 34 5 . . 16 11 14 6 17 5 7 7 5 2 7 Largest Group 23 | . . 2 1 1 4 12 6 9 8 7 23 23 5 4 9 9 3 3 7 5 5 3 3 1 5 Highest-Rated Group 755 | . . 41 31 100 100 215 113 143 127 185 755 755 535 384 290 287 107 87 407 342 342 154 343 343 303 Highest-Rated Ally 343 | . . 31 31 100 100 29 29 26 32 85 159 159 151 96 47 49 49 41 137 137 137 67 343 343 82 Total Orders 80 | . . . . . . 12 5 7 4 7 . 4 . 2 1 . 4 1 5 12 5 2 5 2 2 STAY 38 | . . . . . . 2 2 5 2 1 . 4 . 1 1 . 3 1 3 3 4 1 3 1 1 FOLLOW 20 | . . . . . . 2 1 2 1 1 . . . 1 . . 1 . 2 3 1 1 2 1 1 GUARD 4 | . . . . . . . . . . . . . . . . . . . . 4 . . . . . AID 10 | . . . . . . 5 2 . . 1 . . . . . . . . . 2 . . . . . DROP 3 | . . . . . . 1 . . 1 1 . . . . . . . . . . . . . . . PICKUP 1 | . . . . . . 1 . . . . . . . . . . . . . . . . . . . COLLECT 2 | . . . . . . 1 . . . 1 . . . . . . . . . . . . . . . EXPLORE 2 | . . . . . . . . . . 2 . . . . . . . . . . . . . . . Ally Attacks 1120 | . . . 29 8 11 75 32 21 45 109 118 142 23 37 33 63 54 2 99 57 28 21 24 66 23 Total Damage 31831 | . . . 375 81 222 1222 502 272 966 2141 2242 3555 949 1277 1452 2345 1069 41 2466 1906 1378 1136 1104 4248 882 Kills 215 | . . . 6 3 4 12 4 1 7 17 17 21 4 13 12 19 8 . 12 14 3 8 5 22 3 Allies Corrupted 4 | . . . . . . . . . 2 . 1 . . 1 . . . . . . . . . . . Allies Melted 2 | . . . . . . . . . . . . . . 1 . . 1 . . . . . . . . Intel | -11 -10 -10 -9 -9 -9 -8 -8 -7 -7 -6 -6 -6 -6 -6 -6 -5 -5 -5 -5 -4 -4 -3 -3 -3 -3 ------- Run | Scr Mat Min Mat Sto Gar Mat Gar Fac Gar Fac Ext Cet Arc Hub Gar Fac Gar Fac Gar Fac Gar Res Qua Sec Gar Robot Analysis Total 1 | . . . . . . . . . . 1 . . . . . . . . . . . . . . . Derelict Logs Recovered 1 | . . 1 . . . . . . . . . . . . . . . . . . . . . . . Drone Launches 2 | . . . . . . . . . . 2 . . . . . . . . . . . . . . . Drone Recoveries . | . . . . . . . . . . . . . . . . . . . . . . . . . . Exploration | -11 -10 -10 -9 -9 -9 -8 -8 -7 -7 -6 -6 -6 -6 -6 -6 -5 -5 -5 -5 -4 -4 -3 -3 -3 -3 ------------- Run | Scr Mat Min Mat Sto Gar Mat Gar Fac Gar Fac Ext Cet Arc Hub Gar Fac Gar Fac Gar Fac Gar Res Qua Sec Gar Turns Passed 28265 | 34 482 551 314 812 1242 426 1145 495 1588 3243 1136 379 157 647 1488 759 1412 1326 1567 1059 1537 2475 1749 1809 433 Spaces Moved 14659 | 30 396 427 178 518 599 198 608 268 836 1451 547 178 51 307 665 397 739 655 772 556 795 1427 898 923 240 Core 7 | 1 . . . . . . . . . . . . . . . . . . . . 1 . . 5 . Treads 12953 | . . . . . 508 198 608 268 836 1451 547 178 51 307 665 397 739 655 772 556 794 1427 898 864 234 Legs . | . . . . . . . . . . . . . . . . . . . . . . . . . . Wheels 1639 | 29 396 427 178 518 91 . . . . . . . . . . . . . . . . . . . . Hover 9 | . . . . . . . . . . . . . . . . . . . . . . . . 9 . Flight . | . . . . . . . . . . . . . . . . . . . . . . . . . . Fastest Speed 50 | 50 85 105 105 115 115 160 160 160 160 160 160 160 160 160 160 160 160 160 160 160 160 160 160 116 145 Average Speed 156 | 88 90 108 107 118 156 160 160 160 160 164 173 179 232 181 163 160 160 162 160 160 161 161 160 157 156 Slowest Speed 1300 | 90 120 120 120 150 165 160 160 160 160 240 240 240 240 240 240 240 160 240 160 160 1300 240 160 700 225 Overloaded Moves . | . . . . . . . . . . . . . . . . . . . . . . . . . . Propulsion Burnouts . | . . . . . . . . . . . . . . . . . . . . . . . . . . Robots Hopped . | . . . . . . . . . . . . . . . . . . . . . . . . . . Cave-ins Triggered 2 | . . . . . . . . . . . 1 . . . . . . . . . . . 1 . . Spacefolds 22 | . . . . . . . . . . . . . . . . . . . . . . . . 20 2 Exploration Rate (%) 53 | 4 63 96 15 81 70 17 50 8 78 56 64 66 74 39 63 15 85 24 93 18 89 40 97 60 35 Regions Visited 25 Branch Regions 8 Pre-discovered Areas . | . . . . . . . . . . . . . . . . . . . . . . . . . . Known Exits Taken 9 | . . . . 1 . 1 . 1 . 1 . . . 1 . 1 . 1 . 1 . . . 1 . Unknown Exits Taken 9 | 1 1 1 1 . . . . . . . 1 1 1 . . . . . . . . 1 1 . . Scrap Searched 1 | . . 1 . . . . . . . . . . . . . . . . . . . . . . . Spaces Dug 316 | . . . . . . 6 . 3 1 99 80 . . . 38 . 1 16 . 27 . 8 14 23 . Terrain Destroyed 802 | . . . . 4 19 9 5 4 11 253 137 . 1 6 63 35 28 75 4 68 11 11 22 36 . Melee 3 | . . . . . . . . 3 . . . . . . . . . . . . . . . . . Projectile 181 | . . . . . . 9 3 1 7 10 . . 1 6 6 7 3 16 4 28 11 11 22 36 . AOE 613 | . . . . 4 19 . 2 . 4 243 137 . . . 52 28 25 59 . 40 . . . . . Terrain Rammed . | . . . . . . . . . . . . . . . . . . . . . . . . . . Walls Destroyed . | . . . . . . . . . . . . . . . . . . . . . . . . . . Machines Disabled . | . . . . . . . . . . . . . . . . . . . . . . . . . . Actions | -11 -10 -10 -9 -9 -9 -8 -8 -7 -7 -6 -6 -6 -6 -6 -6 -5 -5 -5 -5 -4 -4 -3 -3 -3 -3 --------- Run | Scr Mat Min Mat Sto Gar Mat Gar Fac Gar Fac Ext Cet Arc Hub Gar Fac Gar Fac Gar Fac Gar Res Qua Sec Gar Total 18387 | 34 458 476 254 642 762 280 710 313 987 2077 682 231 80 374 912 484 909 874 1020 674 968 1562 1143 1183 298 Wait 1243 | . 10 19 37 33 5 28 27 3 . 335 25 11 19 36 55 23 50 104 70 41 49 35 120 72 36 Move 14605 | 29 395 426 177 517 598 197 607 267 835 1450 545 177 50 307 664 396 738 655 771 555 794 1426 896 898 235 Hop . | . . . . . . . . . . . . . . . . . . . . . . . . . . Pick Up 218 | . 8 4 5 11 14 5 8 3 12 21 7 7 . 1 14 5 15 6 22 2 11 10 6 19 2 Fast Attach 214 | 5 2 1 4 11 4 . 4 1 9 22 5 5 . 2 10 5 7 19 5 7 18 28 13 17 10 Attach 129 | . . 2 1 6 3 4 1 3 11 20 7 . 1 3 9 5 9 6 4 2 5 1 6 18 2 Detach 50 | . . . . 2 1 . . . 4 6 3 3 1 4 5 2 . 6 . . . 2 2 8 1 Swap 124 | . 3 . 1 2 8 3 6 4 7 11 4 . 1 1 11 6 10 6 19 2 6 4 6 3 . Drop 255 | . 1 . 1 14 18 4 5 1 10 16 4 13 1 3 16 3 14 19 20 8 19 23 15 21 6 Fire 1462 | . 39 24 28 46 103 39 42 26 82 195 51 15 7 17 128 39 66 44 104 57 66 33 78 127 6 Melee 48 | . . . . . . . 10 4 17 . 10 . . . . . . 7 . . . . . . . Ram . | . . . . . . . . . . . . . . . . . . . . . . . . . . Kick . | . . . . . . . . . . . . . . . . . . . . . . . . . . Crush 3 | . . . . . . . . . . . 2 . . . . . . 1 . . . . . . . Escape Stasis 12 | . . . . . 8 . . . . . 1 . . . . . . . 2 . . . 1 . . Rewire 24 | . . . . . . . . 1 . 1 18 . . . . . . 1 3 . . . . . . Trap . | . . . . . . . . . . . . . . . . . . . . . . . . . . Miscellaneous . | . . . . . . . . . . . . . . . . . . . . . . . . . . Route ------- -11/Scrapyard -10/Materials (discovered 2 exits: *Mat / [*Min]) -10/Mines (discovered 2 exits: *Mat x2) -9/Materials (discovered 2 exits: *Sto x2) -9/Storage (discovered 2 exits: *Mat / Gar) -9/Garrison (discovered 3 exits: *Mat x3) -8/Materials -8/Garrison (discovered 3 exits: *Fac x3) -7/Factory -7/Garrison (discovered 3 exits: *Fac x3) -6/Factory (discovered 7 exits: Fac / *Low x2 / *Ext x2 / Gar / Gar) -6/Extension (discovered 2 exits: *Fac / *Cet) -6/Cetus (discovered 2 exits: *Fac / *Arc) -6/Archives (discovered 2 exits: *Hub x2) -6/Hub_04(d) (discovered 2 exits: *Fac / Gar) -6/Garrison -5/Factory (discovered 2 exits: *Fac / Gar) -5/Garrison (discovered 4 exits: *Fac x4) -5/Factory (discovered 2 exits: [*Upp] / Gar) -5/Garrison (discovered 3 exits: *Fac x3) -4/Factory -4/Garrison (discovered 3 exits: *Res x3) -3/Research (discovered 2 exits: *Res / *Qua) -3/Quarantine (discovered 2 exits: *Res / *Sec) -3/Section 7 (discovered 2 exits: *Res / Gar) -3/Garrison History --------- Turn | Location | Event 18 | -11/Scrapyard | Discovered new exit (range 16) 35 | -11/Scrapyard | Entered Materials 181 | -10/Materials | Discovered new exit (range 8) 309 | -10/Materials | Build established: Mutant 393 | -10/Materials | Discovered new exit (range 6) 517 | -10/Materials | Entered Mines 660 | -10/Mines | Deemed a non-threat by the Exiles lab entrance 700 | -10/Mines | Core integrity fell below 50% 731 | -10/Mines | Lost 3 parts (1p2w) 780 | -10/Mines | Learned Materials stockpile data 828 | -10/Mines | Assembled infested the area 954 | -10/Mines | Discovered new exit (range 11) 981 | -10/Mines | Discovered new exit (range 15) 1068 | -10/Mines | Entered Materials 1068 | -9/Materials | Accompanied by 1 ally 1068 | -9/Materials | Evolved 2 slots: Utility x2 1073 | -9/Materials | Led the pair of lost Derelicts to an unsafe place 1133 | -9/Materials | Discovered new exit (range 10) 1311 | -9/Materials | Discovered new exit (range 6) 1382 | -9/Materials | Entered Storage 1382 | -9/Storage | Accompanied by 1 ally 1815 | -9/Storage | Lost 3 parts (1p1u1w) 1840 | -9/Storage | Identified exit to Garrison 1958 | -9/Storage | Discovered new exit (range 16) 2068 | -9/Storage | Met 01-MTF 2194 | -9/Storage | Entered Garrison 2194 | -9/Garrison | Accompanied by 1 ally (01-MTF) 2199 | -9/Garrison | 01-MTF left 2252 | -9/Garrison | Triggered checkpoint 2303 | -9/Garrison | Core integrity fell below 50% 2338 | -9/Garrison | Discovered new exit (range 44) 2338 | -9/Garrison | Discovered new exit (range 78) 2338 | -9/Garrison | Discovered new exit (range 73) 2378 | -9/Garrison | Triggered checkpoint 2490 | -9/Garrison | Garrison Relay disabled 2510 | -9/Garrison | Garrison Relay disabled 2597 | -9/Garrison | Triggered checkpoint 2602 | -9/Garrison | Triggered checkpoint 2629 | -9/Garrison | Destroyed 8 combat bots 2690 | -9/Garrison | Triggered checkpoint 2702 | -9/Garrison | Garrison Relay disabled 2784 | -9/Garrison | Installed Relay Interface Framework 2890 | -9/Garrison | Triggered checkpoint 2960 | -9/Garrison | Triggered checkpoint 2994 | -9/Garrison | Expanded RIF knowledge: Patrol Navigation 3057 | -9/Garrison | Build established: Bothacker-Mutant 3074 | -9/Garrison | Triggered checkpoint 3082 | -9/Garrison | Learned Materials security intel 3102 | -9/Garrison | Triggered checkpoint 3151 | -9/Garrison | Garrison Relay disabled 3286 | -9/Garrison | Triggered checkpoint 3436 | -9/Garrison | Entered Materials 3436 | -8/Materials | Accompanied by 4 allies 3436 | -8/Materials | Evolved 2 slots: Utility x2 3549 | -8/Materials | Repaired Imp. Heavy Treads 3717 | -8/Materials | Garrison activated, responded to threat 3762 | -8/Materials | Identified exit to Garrison 3862 | -8/Materials | Entered Garrison 3862 | -8/Garrison | Accompanied by 6 allies 3926 | -8/Garrison | Triggered checkpoint 3958 | -8/Garrison | Triggered checkpoint 3960 | -8/Garrison | Triggered checkpoint 4018 | -8/Garrison | Garrison Relay disabled 4047 | -8/Garrison | Expanded RIF knowledge: Signal Jamming 4110 | -8/Garrison | Triggered checkpoint 4112 | -8/Garrison | Heavy support dispatched to Factory 4207 | -8/Garrison | Discovered new exit (range 55) 4207 | -8/Garrison | Discovered new exit (range 45) 4207 | -8/Garrison | Discovered new exit (range 19) 4388 | -8/Garrison | Triggered checkpoint 4424 | -8/Garrison | Garrison Relay disabled 4602 | -8/Garrison | Triggered checkpoint 4661 | -8/Garrison | Garrison Relay disabled 4719 | -8/Garrison | Expanded RIF knowledge: Threat Obfuscation 5007 | -8/Garrison | Entered Factory 5007 | -7/Factory | Accompanied by 3 allies 5007 | -7/Factory | Evolved 2 slots: Utility x2 5015 | -7/Factory | Build established: Botlord-Mutant 5279 | -7/Factory | Identified exit to Garrison 5452 | -7/Factory | Garrison activated, responded to threat 5502 | -7/Factory | Entered Garrison 5502 | -7/Garrison | Accompanied by 8 allies 5584 | -7/Garrison | Triggered checkpoint 5641 | -7/Garrison | Garrison Relay disabled 5686 | -7/Garrison | System corruption reached 10% 5716 | -7/Garrison | Lost 4 parts (1p2u1w) 6006 | -7/Garrison | Triggered checkpoint 6014 | -7/Garrison | Triggered checkpoint 6020 | -7/Garrison | Triggered checkpoint 6172 | -7/Garrison | Triggered checkpoint 6194 | -7/Garrison | Garrison Relay disabled 6237 | -7/Garrison | Discovered new exit (range 10) 6350 | -7/Garrison | Garrison Relay disabled 6353 | -7/Garrison | Garrison Relay disabled 6353 | -7/Garrison | Garrison Relay disabled 6611 | -7/Garrison | Discovered new exit (range 15) 6669 | -7/Garrison | Expanded RIF knowledge: Structural Interface 6740 | -7/Garrison | Triggered checkpoint 6823 | -7/Garrison | Garrison Relay disabled 6874 | -7/Garrison | Triggered checkpoint 6988 | -7/Garrison | Discovered new exit (range 13) 7090 | -7/Garrison | Entered Factory 7090 | -6/Factory | Accompanied by 3 allies 7090 | -6/Factory | Evolved 2 slots: Utility x2 7193 | -6/Factory | Repaired Railgun 7284 | -6/Factory | Identified exit to Garrison 7348 | -6/Factory | Hacking Suite fried by hacking feedback 7419 | -6/Factory | Garrison activated, responded to threat 7539 | -6/Factory | Fabricated Neutrino Core? 7669 | -6/Factory | Repaired Ion Burst Cannon? 8071 | -6/Factory | Identified exit to Lower Caves 8071 | -6/Factory | Identified exit to Extension 8234 | -6/Factory | Central database locked down 8677 | -6/Factory | Spotted B-75 Beast 8685 | -6/Factory | Assimilated Beast 5a with formatsys_high 8780 | -6/Factory | Lost 4 parts (1n1u2w) 8823 | -6/Factory | Repaired Imp. Heavy Treads 9028 | -6/Factory | Build established: Hacker-Mutant 9130 | -6/Factory | Fabricated Particle Reactor? 9378 | -6/Factory | Core integrity fell below 50% 9709 | -6/Factory | Lost 6 parts (5u1w) 9859 | -6/Factory | Identified exit to Garrison 9942 | -6/Factory | Discovered new exit (range 9) 10082 | -6/Factory | Repaired Imp. Heavy Treads 10124 | -6/Factory | Repaired Gui. EMP Blaster 10333 | -6/Factory | Entered Extension 10490 | -6/Extension | Rescued a captive Derelict 10491 | -6/Extension | Rescued a captive Derelict 10667 | -6/Extension | Rescued a captive Derelict 10702 | -6/Extension | Rescued a captive Derelict 10703 | -6/Extension | Rescued a captive Derelict 10745 | -6/Extension | Rescued a captive Derelict 10791 | -6/Extension | Build established: Bothacker-Mutant 10822 | -6/Extension | Crushed by falling debris 10823 | -6/Extension | System corruption reached 10% 10853 | -6/Extension | Lost 5 parts (4u1w) 10936 | -6/Extension | Rescued a captive Derelict 10937 | -6/Extension | Rescued a captive Derelict 11018 | -6/Extension | Rescued a captive Derelict 11019 | -6/Extension | Rescued a captive Derelict 11062 | -6/Extension | Rescued a captive Derelict 11066 | -6/Extension | Rescued a captive Derelict 11085 | -6/Extension | Rescued a captive Derelict 11245 | -6/Extension | Rescued A7 11409 | -6/Extension | Discovered new exit (range 10) 11411 | -6/Extension | Discovered new exit (range 6) 11469 | -6/Extension | Entered Cetus 11469 | -6/Cetus | Accompanied by 23 allies (A7) 11474 | -6/Cetus | Acquired a Cetus Manufacturing Module code from A7 11489 | -6/Cetus | Spotted Cetus Guard 11489 | -6/Cetus | Spotted Cetus Guard 11490 | -6/Cetus | Spotted Cetus Guard 11492 | -6/Cetus | Spotted Cetus Guard 11499 | -6/Cetus | Allies destroyed Cetus Guard 11504 | -6/Cetus | Allies destroyed Cetus Guard 11505 | -6/Cetus | Build established: Commander-Mutant 11505 | -6/Cetus | Allies destroyed Cetus Guard 11512 | -6/Cetus | Allies destroyed Cetus Guard 11606 | -6/Cetus | Started Cetus Manufacturing Module 11618 | -6/Cetus | Escorted A7 to Cetus Mainframe 11631 | -6/Cetus | Manufactured an Enhanced Grunt 11639 | -6/Cetus | Discovered new exit (range 15) 11656 | -6/Cetus | Manufactured an Enhanced Grunt 11671 | -6/Cetus | Spotted Cetus Guard 11671 | -6/Cetus | Spotted Cetus Guard 11675 | -6/Cetus | Spotted Cetus Guard 11675 | -6/Cetus | Spotted Cetus Guard 11681 | -6/Cetus | Manufactured an Enhanced Grunt 11689 | -6/Cetus | Allies destroyed Cetus Guard 11690 | -6/Cetus | Destroyed Cetus Guard 11700 | -6/Cetus | Allies destroyed Cetus Guard 11702 | -6/Cetus | Destroyed Cetus Guard 11706 | -6/Cetus | Manufactured an Enhanced Grunt 11729 | -6/Cetus | Discovered new exit (range 16) 11731 | -6/Cetus | Manufactured an Enhanced Grunt 11740 | -6/Cetus | Met Revision 17 11848 | -6/Cetus | Entered Archives 11848 | -6/Archives | Accompanied by 5 allies (A7) 11853 | -6/Archives | Received a hacking code to weaken MAIN.C 11929 | -6/Archives | Unable to access archive contents 11934 | -6/Archives | Discovered new exit (range 16) 11953 | -6/Archives | Unable to access archive contents 11963 | -6/Archives | Discovered new exit (range 14) 11984 | -6/Archives | Build established: Bothacker-Mutant 12005 | -6/Archives | Entered Hub_04(d) 12005 | -6/Hub_04(d) | Accompanied by 4 allies 12422 | -6/Hub_04(d) | Discovered new exit (range 11) 12512 | -6/Hub_04(d) | Garrison activated, responded to threat 12652 | -6/Hub_04(d) | Identified exit to Garrison 12652 | -6/Hub_04(d) | Entered Garrison 12788 | -6/Garrison | Triggered checkpoint 12852 | -6/Garrison | Garrison Relay disabled 12915 | -6/Garrison | Spotted B-75 Beast 13155 | -6/Garrison | Build established: Botlord-Mutant 13235 | -6/Garrison | Destroyed B-75 Beast 13268 | -6/Garrison | Triggered checkpoint 13427 | -6/Garrison | Spotted B-75 Beast 13588 | -6/Garrison | Triggered checkpoint 13679 | -6/Garrison | Expanded RIF knowledge: Alert ID Control 13694 | -6/Garrison | Triggered checkpoint 13709 | -6/Garrison | Garrison Relay disabled 13858 | -6/Garrison | Triggered checkpoint 13870 | -6/Garrison | Triggered checkpoint 13984 | -6/Garrison | Discovered new exit (range 14) 14043 | -6/Garrison | Garrison Relay disabled 14140 | -6/Garrison | Entered Factory 14140 | -5/Factory | Accompanied by 8 allies 14140 | -5/Factory | Evolved 2 slots: Utility x2 14502 | -5/Factory | Lost 3 parts (1p2w) 14748 | -5/Factory | Repaired Adv. KE Penetrator 14827 | -5/Factory | Discovered new exit (range 15) 14839 | -5/Factory | Identified exit to Garrison 14899 | -5/Factory | Entered Garrison 14899 | -5/Garrison | Accompanied by 1 ally 14932 | -5/Garrison | Expanded RIF knowledge: Robot Detection 14984 | -5/Garrison | Triggered checkpoint 14985 | -5/Garrison | Garrison Relay disabled 15060 | -5/Garrison | Garrison Relay disabled 15136 | -5/Garrison | Spotted B-75 Beast 15136 | -5/Garrison | Triggered checkpoint 15191 | -5/Garrison | System corruption reached 10% 15229 | -5/Garrison | Lost 5 parts (5u) 15351 | -5/Garrison | Destroyed B-75 Beast 15387 | -5/Garrison | Triggered checkpoint 15438 | -5/Garrison | Destroyed 7 combat bots 15497 | -5/Garrison | Discovered new exit (range 10) 15560 | -5/Garrison | Garrison Relay disabled 15676 | -5/Garrison | Triggered checkpoint 15701 | -5/Garrison | Garrison Relay disabled 15744 | -5/Garrison | Discovered new exit (range 9) 15780 | -5/Garrison | Triggered checkpoint 15817 | -5/Garrison | Discovered new exit (range 3) 15982 | -5/Garrison | Triggered checkpoint 15989 | -5/Garrison | Discovered new exit (range 14) 16088 | -5/Garrison | Triggered checkpoint 16100 | -5/Garrison | Triggered checkpoint 16311 | -5/Garrison | Entered Factory 16311 | -5/Factory | Accompanied by 3 allies 16549 | -5/Factory | Repaired Centrium Medium Armor Plating? 16724 | -5/Factory | Discovered new exit (range 16) 17391 | -5/Factory | Cargo convoy interrupted 17529 | -5/Factory | Found Prototype Protection 17529 | -5/Factory | Identified Active Cooling Armor 17541 | -5/Factory | Found Prototype Device 17541 | -5/Factory | Identified Exp. Force Field 17557 | -5/Factory | Found Prototype Processor 17557 | -5/Factory | Identified Spectral Analyzer 17561 | -5/Factory | Found Prototype Processor 17561 | -5/Factory | Identified Exp. Core Analyzer 17567 | -5/Factory | Found Exp. Force Field 17637 | -5/Factory | Identified exit to Garrison 17637 | -5/Factory | Entered Garrison 17792 | -5/Garrison | Triggered checkpoint 17909 | -5/Garrison | Heavy support dispatched to Factory 17948 | -5/Garrison | Triggered checkpoint 17986 | -5/Garrison | Garrison Relay disabled 18037 | -5/Garrison | Heavy support dispatched to Factory 18085 | -5/Garrison | Spotted B-75 Beast 18116 | -5/Garrison | Allies destroyed B-75 Beast 18224 | -5/Garrison | Triggered checkpoint 18322 | -5/Garrison | Discovered new exit (range 12) 18330 | -5/Garrison | Garrison Relay disabled 18436 | -5/Garrison | Triggered checkpoint 18490 | -5/Garrison | Garrison Relay disabled 18512 | -5/Garrison | Heavy support dispatched to Factory 18606 | -5/Garrison | Triggered checkpoint 18710 | -5/Garrison | Discovered new exit (range 10) 18745 | -5/Garrison | Expanded RIF knowledge: Threat Obfuscation 18790 | -5/Garrison | Discovered new exit (range 49) 18790 | -5/Garrison | Discovered new exit (range 23) 18790 | -5/Garrison | Discovered new exit (range 53) 18796 | -5/Garrison | Triggered checkpoint 18822 | -5/Garrison | Garrison Relay disabled 18982 | -5/Garrison | Triggered checkpoint 19008 | -5/Garrison | Garrison Relay disabled 19042 | -5/Garrison | Spotted B-75 Beast 19048 | -5/Garrison | Assimilated Beast 6a with formatsys_high 19116 | -5/Garrison | Found Unknown Hackware 19116 | -5/Garrison | Identified Relay Coupler [Proto] 19119 | -5/Garrison | Found Relay Coupler [Proto] 19122 | -5/Garrison | Found Relay Coupler [Proto] 19125 | -5/Garrison | Found Relay Coupler [Proto] 19204 | -5/Garrison | Entered Factory 19204 | -4/Factory | Accompanied by 5 allies 19204 | -4/Factory | Evolved 2 slots: Utility x2 20003 | -4/Factory | Spotted B-86 Titan 20014 | -4/Factory | Identified exit to Garrison 20263 | -4/Factory | Entered Garrison 20263 | -4/Garrison | Accompanied by 5 allies 20322 | -4/Garrison | Triggered checkpoint 20330 | -4/Garrison | Triggered checkpoint 20331 | -4/Garrison | Spotted B-86 Titan 20415 | -4/Garrison | Destroyed B-86 Titan 20447 | -4/Garrison | Lost 6 parts (5u1w) 20603 | -4/Garrison | Triggered checkpoint 20774 | -4/Garrison | Discovered new exit (range 16) 20784 | -4/Garrison | Triggered checkpoint 20813 | -4/Garrison | Garrison Relay disabled 20946 | -4/Garrison | Garrison Relay disabled 20998 | -4/Garrison | Discovered new exit (range 11) 21193 | -4/Garrison | Discovered new exit (range 5) 21310 | -4/Garrison | Triggered checkpoint 21355 | -4/Garrison | Garrison Relay disabled 21466 | -4/Garrison | Garrison Relay disabled 21490 | -4/Garrison | Triggered checkpoint 21560 | -4/Garrison | Garrison Relay disabled 21577 | -4/Garrison | Expanded RIF knowledge: Coupler Efficiency 21800 | -4/Garrison | Entered Research 21800 | -3/Research | Accompanied by 2 allies 21800 | -3/Research | Evolved 2 slots: Utility x2 22000 | -3/Research | Revision forces began assault on 0b10 22050 | -3/Research | Met up with Revision 17++ 22096 | -3/Research | Discovered new exit (range 24) 22114 | -3/Research | Local machine network offline 22500 | -3/Research | Research terminal network offline 22710 | -3/Research | Spotted B-86 Titan 22737 | -3/Research | Destroyed B-86 Titan 22957 | -3/Research | Spotted Executioner 22959 | -3/Research | Spotted Striker 22962 | -3/Research | Destroyed Executioner 22966 | -3/Research | Destroyed Striker 23013 | -3/Research | Spotted Striker 23017 | -3/Research | Allies destroyed Striker 23315 | -3/Research | Spotted Striker 23324 | -3/Research | Destroyed Striker 23798 | -3/Research | Spotted Executioner 23800 | -3/Research | Spotted Striker 23922 | -3/Research | Spotted Striker 23932 | -3/Research | Spotted Striker 23938 | -3/Research | Spotted Striker 24013 | -3/Research | Identified exit to Research 24263 | -3/Research | Discovered new exit (range 7) 24275 | -3/Research | Entered Quarantine 24275 | -3/Quarantine | Accompanied by 2 allies 24334 | -3/Quarantine | Found Alien Artifact 24434 | -3/Quarantine | Identified Subatomic Replicator 24776 | -3/Quarantine | Local machine network offline 24807 | -3/Quarantine | Crushed by falling debris 24996 | -3/Quarantine | Found Alien Artifact 25045 | -3/Quarantine | Met incapacitated Sigix Warrior 25045 | -3/Quarantine | Lockdown squad dispatched 25138 | -3/Quarantine | Found Alien Artifact 25150 | -3/Quarantine | Spotted Lightning 25261 | -3/Quarantine | Found Alien Artifact 25651 | -3/Quarantine | Lost 4 parts (1p2u1w) 25747 | -3/Quarantine | Discovered exit to Research (range 4) 25789 | -3/Quarantine | Identified Phase Armor 25895 | -3/Quarantine | Spotted Fortress 25903 | -3/Quarantine | Assimilated Fortress with formatsys_high 26013 | -3/Quarantine | Discovered new exit (range 7) 26024 | -3/Quarantine | Entered Section 7 26024 | -3/Section 7 | Accompanied by 1 ally 26097 | -3/Section 7 | Found Alien Artifact 26496 | -3/Section 7 | Found Alien Artifact 26527 | -3/Section 7 | Identified Spacefold Activator 26528 | -3/Section 7 | Identified Phase Redirector 26529 | -3/Section 7 | Found Alien Artifact 26529 | -3/Section 7 | Identified Integrated Dissipator 26529 | -3/Section 7 | Installed Integrated Dissipator, increased core heat dissipation (+20) 26546 | -3/Section 7 | Discovered exit to Research (range 8) 26841 | -3/Section 7 | Spotted Alpha 7 26870 | -3/Section 7 | Spotted Alpha 7 26918 | -3/Section 7 | Destroyed Alpha 7 26930 | -3/Section 7 | Destroyed Alpha 7 26981 | -3/Section 7 | Identified Core Reset Matrix 27001 | -3/Section 7 | Spotted B-99 Colossus 27114 | -3/Section 7 | Destroyed B-99 Colossus 27161 | -3/Section 7 | Found Alien Artifact 27161 | -3/Section 7 | Identified Core Expander 27161 | -3/Section 7 | Installed Core Expander, added new Utility slot 27217 | -3/Section 7 | Found Alien Artifact 27217 | -3/Section 7 | Identified LRC Storage 27217 | -3/Section 7 | Installed LRC Storage, increased inventory capacity (+2) 27269 | -3/Section 7 | Found Alien Artifact 27271 | -3/Section 7 | Core integrity fell below 50% 27341 | -3/Section 7 | Found Prototype Device 27341 | -3/Section 7 | Identified Exp. EM Disruption Field 27507 | -3/Section 7 | Found Alien Artifact 27507 | -3/Section 7 | Identified Integrity Redistributor (x3) 27507 | -3/Section 7 | Used Integrity Redistributor, redistributed integrity to core (+243) 27810 | -3/Section 7 | System corruption reached 10% 27819 | -3/Section 7 | Core integrity fell below 20% 27833 | -3/Section 7 | Identified exit to Garrison 27833 | -3/Section 7 | Entered Garrison 27847 | -3/Garrison | Lost 4 parts (1p1u2w) 27862 | -3/Garrison | Found embedded Infiltrators 28000 | -3/Garrison | Local machine network offline 28000 | -3/Garrison | Triggered checkpoint 28015 | -3/Garrison | Garrison Relay disabled 28038 | -3/Garrison | Triggered checkpoint 28258 | -3/Garrison | Spotted B-86 Titan 28266 | -3/Garrison | Core destroyed Last Messages --------------- 28170_ Acquired Prototype Device. 28170_ Identified Active Sensor Spoofer. 28172_ Dropped Active Sensor Spoofer. 28174_ Acquired Unknown Protection. 28174_ Identified Imp. Core Shielding. 28175_ Acquired 79 matter. 28181_ Discarded Relay Coupler [NC]. 28182_ Acquired Adv. Weight Redist. System. 28186_ System corrupted: FCS attempts to trigger Coil Gun. 28186_ System corrupted: Coil Gun misfires. 28205_ Acquired Med. Treads. 28220_ System corrupted: Energy discharge (-13). 28232_ Acquired 68 matter. 28232_ RIF reveals location of phase wall. 28238_ T8M LGRDQR5ZPONMYZH F5ZGSPCE/#7YV 28256_ System corrupted: IFF burst signal emitted. 28258_ RIF reveals location of phase wall. 28261_ Spacefolded through Wall. 28266_ RIF reveals location of phase wall. 28266_ Spacefolded through Reinforced Barrier. Map ----- +----------------------------------------------------+ | ?????????????????????????????????????????????????? | | ?????????????????????????????????? ?????????????? | | ???????????????????????? ???????? ?????????????? | | ???????????????????????? ???????? ?????????????? | | ???????????????????????? ???????? ?????????????? | | ???????????????????????? ???????? ?????????????? | | ???????????????????????? ???????# ?????????????? | | ???????????????????????+ ???????# #????????????? | | ??????????????????????Y# ??ggg??# #????????????? | | ??????????????????????## ???????# ##???????????? | | ???????????????????g### ??????? #???????????? | | ???????????????????g ??????? #???????????? | | ????????????????????g ??????? +???????????? | | ??????????????????????# #??????# #???????????? | | ??????????????????????# #?????## ###?????????? | | ??????????????????????" ???? [%??????????? | | ??????????????????????" ???? %!=??????????? | | ??????????????????????" ??? ???????????? | | ??????????????????????" ?? ???????????? | | ??????????????????????# ## ?# #???????????? | | ??????????????????????# ## ## ####??####??? | | ??????????????????????+ ??? g#### | | ??????????????????????+ ???? g | | ??????????????????????# ??? #??#+## #### | | ??????????????????????# ##""""## #???# ## #??? | | ??????????????????????# @## ## #???# ## #??? | | ??????????????????????# ######## #???# ## #??? | | ??????????????????????+ #??????# #???# ## #??? | | ??????????????????????# #??????# +??? ## #??? | | ??????????????????????# #??????# #???# ## #??? | | ??????????????????????#s #??????# !#???# ## #??? | | ??????????????????????#s #??????#[ #####+## #??? | | ?????????????????????? #??????# ! #### | | ?????????????????????? #??????# !!=! | | ????????????????????? #??????########"## #### | | ?????????????????????##+###?????????????# ## #### | | ????????????????????????????????????????# + + | | ????????????????????????????????????????#### #### | | ?????????????????g?????????????????????????# #??? | | ?????????????????g?????????????????????????# #??? | | ???????????????????????????????????????????# #### | | ???????????????????????????????????????????# | | ???????????????????????????????????????????# | | ???????????????????????????????????????????##+#### | | ????????????????????????????????????????##### #### | | ????????????????????????????????????????# | | ????????????????????????????????????????# | | ????????????????????????????????????????# | | ????????????????????????????????????????# " | | ????????????????????????????????????????#"" """ | +----------------------------------------------------+ Best States ------------- Heat Dissipation 126 Coolant Potential 145 Energy Generation 25 Energy Capacity 1425 Matter Stores 400 Matter Capacity 600 Sight Range 24 Terrain Scan Density 10 Additional Mass Support 12 EM Shielding 2 Corruption Block 20 Armor Coverage 1800 Resistance: TH 20 Resistance: EM 75 Core Shielding 30 Point Defense Rating 80 Weapon Cycling 20 Phase Shifting 15 Evasion (%) 55 Targeting Accuracy 12 Melee Accuracy 5 Launcher Accuracy 40 Target Analysis 12 Core Analysis 8 Armor Integrity Analysis 40 Recoil Reduction 2 Particle Charging 25 Kinecelleration 40 Offensive Hacking 44 Defensive Hacking 26 Relay Coupler Types 8 Relay Coupler Value 202 Authchip Count 4 Item Schematics ----------------- Energy Well | -7/Factory | Hacked Particle Reactor | -6/Factory | Scanalyzed Mni. Drone Bay | -6/Factory | Hacked Lrn. Proton Cannon | -6/Factory | Hacked Plasma Rifle | -6/Factory | Hacked Gyrokinetic Inverter | -6/Factory | Hacked Lgt. Antimatter Reactor | -6/Factory | Hacked Hvy. Treads | -6/Factory | Hacked Adv. Hacking Suite | -4/Factory | Hacked Adv. System Shield | -4/Factory | Hacked Lrg. Storage Unit | -4/Factory | Hacked Cld. Impulse Thruster | -3/Quarantine | Archive Enh. Biometal Leg | -3/Quarantine | Archive Plasma Lance | -3/Quarantine | Archive Robot Schematics ------------------ R-10 Processor | -6/Factory | Hacked W-44 Eye | -3/Quarantine | Archive Fabricated ------------ Neutrino Core | x2 | -6/Factory | Preloaded Particle Reactor | x2 | -6/Factory Alien Tech Used ----------------- Phase Armor Spacefold Activator Phase Redirector Integrated Dissipator Core Expander LRC Storage Integrity Redistributor Achievements -------------- Giant Slayer Challenges ------------ None Game ------ Seed CatalystMetafiberField Manual? 1 Play Time 07:50:06 Cumulative 306.2 hours Start 2022.08.07 @ 00:28:16 End 2022.08.09 @ 21:12:54 Sessions 11 Manual Loads 0 Difficulty Rogue Special Mode None Game No. 147 Rogue 143 Adventurer 0 Explorer 4 Win Type - Total 16 Types 4/0/2/4/1/2/3/0/0 Lore% 77 Gallery% 84 Achievement% 75 Wizard Run 0 Options --------- ASCII 0 Keyboard 0 Movement Mouse Keybinds 0 Fullscreen 1 Font 18/SmallcapsGlow Map View 76x50 Tactical HUD 1 Map Filters NONE Filters NONE Steam 1 RUN: 53451cd9-269e-4e75-94ae-c84d18ea584b